[Event "Late-Titled-Tuesday-Blitz-February-27-2024"]
[Site "Chess.com"]
[Date "2024.02.27"]
[Round "1"]
[White "Ali_rastbod"]
[Black "Grindaveci"]
[Result "1-0"]
[WhiteElo "2710"]
[BlackElo "2409"]
[TimeControl "180+1"]
[EndTime "14:06:11 PST"]
[Termination "Ali_rastbod won by checkmate"]

1. Nf3 {[%clk 0:03:00.9]} 1... d5 {[%clk 0:02:59.7]} 2. c4 {[%clk 0:03:01.4]}
2... e6 {[%clk 0:02:59.2]} 3. g3 {[%clk 0:03:00.7]} 3... Nf6 {[%clk 0:02:59.3]}
4. Bg2 {[%clk 0:03:01.4]} 4... Be7 {[%clk 0:02:58.9]} 5. O-O {[%clk 0:03:02.2]}
5... O-O {[%clk 0:02:59.6]} 6. b3 {[%clk 0:03:03]} 6... c5 {[%clk 0:02:57.4]} 7.
Bb2 {[%clk 0:03:03.4]} 7... d4 {[%clk 0:02:57.1]} 8. e3 {[%clk 0:03:02.9]} 8...
Nc6 {[%clk 0:02:57.6]} 9. exd4 {[%clk 0:03:03.5]} 9... cxd4 {[%clk 0:02:58.5]}
10. Re1 {[%clk 0:03:04.2]} 10... Re8 {[%clk 0:02:56.9]} 11. Ne5 {[%clk
0:03:04.6]} 11... Nxe5 {[%clk 0:02:51.5]} 12. Rxe5 {[%clk 0:03:05.5]} 12... Rb8
{[%clk 0:02:49.8]} 13. d3 {[%clk 0:03:03.7]} 13... a6 {[%clk 0:02:47]} 14. Nd2
{[%clk 0:03:02.3]} 14... b5 {[%clk 0:02:47.3]} 15. Rc1 {[%clk 0:02:58.7]} 15...
Bb7 {[%clk 0:02:47.1]} 16. Bxb7 {[%clk 0:02:58.9]} 16... Rxb7 {[%clk 0:02:48]}
17. Qf3 {[%clk 0:02:59.6]} 17... Rb8 {[%clk 0:02:44.8]} 18. a3 {[%clk
0:02:56.2]} 18... bxc4 {[%clk 0:02:40.3]} 19. Rxc4 {[%clk 0:02:54.9]} 19... Nd5
{[%clk 0:02:27.5]} 20. Re1 {[%clk 0:02:37.1]} 20... Nc3 {[%clk 0:02:23.5]} 21.
h4 {[%clk 0:02:20.9]} 21... Qd7 {[%clk 0:02:15.7]} 22. h5 {[%clk 0:02:15.8]}
22... h6 {[%clk 0:02:15.5]} 23. Kg2 {[%clk 0:02:15.6]} 23... Bf6 {[%clk
0:02:14.8]} 24. Ne4 {[%clk 0:02:04.4]} 24... Nxe4 {[%clk 0:02:13]} 25. Rxe4
{[%clk 0:02:05.3]} 25... Rxb3 {[%clk 0:02:12.7]} 26. Bxd4 {[%clk 0:02:05.7]}
26... Bxd4 {[%clk 0:01:58.7]} 27. Rexd4 {[%clk 0:02:05.1]} 27... Qe7 {[%clk
0:01:56.7]} 28. a4 {[%clk 0:02:04.7]} 28... Rd8 {[%clk 0:01:56.6]} 29. Qc6
{[%clk 0:01:59]} 29... Rxd3 {[%clk 0:01:44.9]} 30. Rxd3 {[%clk 0:01:56.3]} 30...
Rxd3 {[%clk 0:01:43.1]} 31. Qxa6 {[%clk 0:01:56.7]} 31... Qd6 {[%clk 0:01:33.6]}
32. Qxd6 {[%clk 0:01:44]} 32... Rxd6 {[%clk 0:01:33.4]} 33. a5 {[%clk
0:01:44.9]} 33... Ra6 {[%clk 0:01:32.9]} 34. Ra4 {[%clk 0:01:45.6]} 34... Kf8
{[%clk 0:01:33.6]} 35. Kf3 {[%clk 0:01:42.6]} 35... Ke7 {[%clk 0:01:34.1]} 36.
Ke4 {[%clk 0:01:43.4]} 36... Kd6 {[%clk 0:01:32.7]} 37. Kd4 {[%clk 0:01:43.9]}
37... Kc6 {[%clk 0:01:32.8]} 38. Kc4 {[%clk 0:01:44.4]} 38... Kb7 {[%clk
0:01:32.2]} 39. Kb5 {[%clk 0:01:43.9]} 39... Rd6 {[%clk 0:01:32.5]} 40. Rc4
{[%clk 0:01:43.3]} 40... Rd2 {[%clk 0:01:30.5]} 41. a6+ {[%clk 0:01:42.9]} 41...
Ka8 {[%clk 0:01:30]} 42. Rc8+ {[%clk 0:01:42.5]} 42... Ka7 {[%clk 0:01:29.5]}
43. Rc7+ {[%clk 0:01:43.4]} 43... Kb8 {[%clk 0:01:30]} 44. Rxf7 {[%clk
0:01:44.3]} 44... Rd5+ {[%clk 0:01:29.5]} 45. Kb6 {[%clk 0:01:42.9]} 45... Rd6+
{[%clk 0:01:29.8]} 46. Kb5 {[%clk 0:01:43.1]} 46... Rd5+ {[%clk 0:01:29.6]} 47.
Kc6 {[%clk 0:01:43.7]} 47... Rxh5 {[%clk 0:01:28.2]} 48. Kb6 {[%clk 0:01:41.7]}
48... Rf5 {[%clk 0:01:27]} 49. Rxg7 {[%clk 0:01:25.9]} 49... Rf8 {[%clk
0:01:25.2]} 50. f4 {[%clk 0:01:13.7]} 50... h5 {[%clk 0:01:24.2]} 51. Rh7 {[%clk
0:01:13.3]} 51... Rd8 {[%clk 0:01:15.2]} 52. Rxh5 {[%clk 0:01:13.3]} 52... Rd6+
{[%clk 0:01:15.3]} 53. Kb5 {[%clk 0:01:13.8]} 53... Ka7 {[%clk 0:01:14.2]} 54.
Rh7+ {[%clk 0:01:13.8]} 54... Ka8 {[%clk 0:01:14.4]} 55. Re7 {[%clk 0:01:14.4]}
55... Rd3 {[%clk 0:01:13.8]} 56. Rg7 {[%clk 0:01:11.4]} 56... Rd5+ {[%clk
0:01:12.4]} 57. Kc6 {[%clk 0:01:08.6]} 57... Ra5 {[%clk 0:01:11.4]} 58. Kb6
{[%clk 0:01:09]} 58... Ra1 {[%clk 0:01:09.9]} 59. Rg8# {[%clk 0:01:08.5]} 1-0

[Event "Late-Titled-Tuesday-Blitz-February-27-2024"]
[Site "Chess.com"]
[Date "2024.02.27"]
[Round "1"]
[White "stollenmonster"]
[Black "Eloist"]
[Result "1-0"]
[WhiteElo "2875"]
[BlackElo "2474"]
[TimeControl "180+1"]
[EndTime "14:06:12 PST"]
[Termination "stollenmonster won by resignation"]

1. e4 {[%clk 0:03:00.9]} 1... e6 {[%clk 0:02:58.2]} 2. Nc3 {[%clk 0:03:00.7]}
2... d5 {[%clk 0:02:57.6]} 3. g3 {[%clk 0:03:01.6]} 3... dxe4 {[%clk 0:02:55.6]}
4. Nxe4 {[%clk 0:03:02.5]} 4... Bd7 {[%clk 0:02:54]} 5. Bg2 {[%clk 0:03:02.7]}
5... Bc6 {[%clk 0:02:54]} 6. Kf1 {[%clk 0:03:03.4]} 6... Be7 {[%clk 0:02:42.1]}
7. Ne2 {[%clk 0:03:01.7]} 7... Nf6 {[%clk 0:02:40.5]} 8. Nxf6+ {[%clk
0:03:00.2]} 8... Bxf6 {[%clk 0:02:40.7]} 9. Nf4 {[%clk 0:02:52.9]} 9... O-O
{[%clk 0:02:37.8]} 10. d3 {[%clk 0:02:50.6]} 10... e5 {[%clk 0:02:33.3]} 11. Nh5
{[%clk 0:02:48.4]} 11... Be7 {[%clk 0:02:26.5]} 12. g4 {[%clk 0:02:30.3]} 12...
g6 {[%clk 0:02:19.2]} 13. Ng3 {[%clk 0:02:29.4]} 13... Bg5 {[%clk 0:02:08.4]}
14. h4 {[%clk 0:02:26.8]} 14... Bxc1 {[%clk 0:02:04.6]} 15. Qxc1 {[%clk
0:02:22.8]} 15... Qd4 {[%clk 0:01:34.2]} 16. h5 {[%clk 0:01:56.1]} 16... Qxg4
{[%clk 0:01:27.6]} 17. Qh6 {[%clk 0:01:55.1]} 17... Qf4 {[%clk 0:01:11.3]} 18.
hxg6 {[%clk 0:01:50.3]} 18... Qxh6 {[%clk 0:01:09.8]} 19. gxf7+ {[%clk
0:01:44.4]} 19... Rxf7 {[%clk 0:01:00]} 20. Rxh6 {[%clk 0:01:43.8]} 20... Bxg2+
{[%clk 0:00:53.9]} 21. Kxg2 {[%clk 0:01:44.7]} 21... Nc6 {[%clk 0:00:51.3]} 22.
Rah1 {[%clk 0:01:43.6]} 22... Raf8 {[%clk 0:00:50.9]} 23. Ne4 {[%clk 0:01:43.3]}
23... Rg7+ {[%clk 0:00:50.1]} 24. Kf1 {[%clk 0:01:41.6]} 24... Rgf7 {[%clk
0:00:30.4]} 25. Rg1+ {[%clk 0:01:35.2]} 25... Kh8 {[%clk 0:00:29.5]} 26. c3
{[%clk 0:01:34.3]} 26... a5 {[%clk 0:00:27.3]} 27. Rg2 {[%clk 0:01:28.6]} 27...
Rg7 {[%clk 0:00:22.6]} 28. Rgh2 {[%clk 0:01:23.9]} 28... Rgf7 {[%clk 0:00:14.2]}
29. Nc5 {[%clk 0:01:22.9]} 29... Nd8 {[%clk 0:00:12.8]} 30. R6h5 {[%clk
0:01:20.2]} 30... b6 {[%clk 0:00:11.5]} 31. Ne4 {[%clk 0:01:20.1]} 31... Nc6
{[%clk 0:00:08]} 32. Ng5 {[%clk 0:01:19.4]} 32... Re7 {[%clk 0:00:04.5]} 33.
Rxh7+ {[%clk 0:01:19.5]} 33... Rxh7 {[%clk 0:00:03.9]} 34. Rxh7+ {[%clk
0:01:20]} 34... Kg8 {[%clk 0:00:04.3]} 35. Rxc7 {[%clk 0:01:20.7]} 35... Rf5
{[%clk 0:00:03.7]} 36. Rxc6 {[%clk 0:01:19.6]} 36... Rxg5 {[%clk 0:00:03.8]} 37.
Rxb6 {[%clk 0:01:20.3]} 1-0

[Event "Late-Titled-Tuesday-Blitz-February-27-2024"]
[Site "Chess.com"]
[Date "2024.02.27"]
[Round "1"]
[White "SergioMoralesG"]
[Black "maurovargas01"]
[Result "1-0"]
[WhiteElo "2531"]
[BlackElo "1851"]
[TimeControl "180+1"]
[EndTime "14:06:12 PST"]
[Termination "SergioMoralesG won by checkmate"]

1. d4 {[%clk 0:02:55.5]} 1... d5 {[%clk 0:02:44.5]} 2. c4 {[%clk 0:02:54.7]}
2... c6 {[%clk 0:02:44.3]} 3. Nf3 {[%clk 0:02:52]} 3... e6 {[%clk 0:02:44.3]} 4.
Qc2 {[%clk 0:02:51.5]} 4... Nf6 {[%clk 0:02:43.9]} 5. Bg5 {[%clk 0:02:47.7]}
5... Be7 {[%clk 0:02:42.8]} 6. e3 {[%clk 0:02:46.3]} 6... O-O {[%clk 0:02:42.7]}
7. Nc3 {[%clk 0:02:46.6]} 7... Nbd7 {[%clk 0:02:39.8]} 8. a3 {[%clk 0:02:46.2]}
8... h6 {[%clk 0:02:39.4]} 9. Bh4 {[%clk 0:02:45.6]} 9... Re8 {[%clk 0:02:35.1]}
10. Rc1 {[%clk 0:02:44.7]} 10... Bd6 {[%clk 0:02:20.9]} 11. Bd3 {[%clk
0:02:31.7]} 11... e5 {[%clk 0:02:18.6]} 12. dxe5 {[%clk 0:02:29.2]} 12... Nxe5
{[%clk 0:02:15.6]} 13. Nxe5 {[%clk 0:02:29.3]} 13... Bxe5 {[%clk 0:02:12]} 14.
cxd5 {[%clk 0:02:29.4]} 14... cxd5 {[%clk 0:02:08.7]} 15. Bb5 {[%clk 0:01:58.3]}
15... Re6 {[%clk 0:01:58]} 16. O-O {[%clk 0:01:29.5]} 16... Bxh2+ {[%clk
0:01:41.2]} 17. Kxh2 {[%clk 0:01:29.6]} 17... Ng4+ {[%clk 0:01:41]} 18. Kg3
{[%clk 0:01:16.9]} 18... Qd6+ {[%clk 0:01:28.9]} 19. Kf3 {[%clk 0:01:13.5]}
19... Nh2+ {[%clk 0:01:16.6]} 20. Ke2 {[%clk 0:01:13.4]} 20... Nxf1 {[%clk
0:01:13.1]} 21. Kxf1 {[%clk 0:01:10.6]} 21... d4 {[%clk 0:01:08.6]} 22. Ne4
{[%clk 0:00:52.3]} 22... Qh2 {[%clk 0:01:05.6]} 23. Bg3 {[%clk 0:00:39.1]} 23...
Qh1+ {[%clk 0:01:00]} 24. Ke2 {[%clk 0:00:39.4]} 24... Qxg2 {[%clk 0:00:55.1]}
25. Bd3 {[%clk 0:00:29.7]} 25... dxe3 {[%clk 0:00:51.4]} 26. Qxc8+ {[%clk
0:00:21.9]} 26... Rxc8 {[%clk 0:00:44.3]} 27. Rxc8+ {[%clk 0:00:22.8]} 27... Kh7
{[%clk 0:00:40.7]} 28. Ng5# {[%clk 0:00:23]} 1-0

[Event "Late-Titled-Tuesday-Blitz-February-27-2024"]
[Site "Chess.com"]
[Date "2024.02.27"]
[Round "1"]
[White "bancsoo"]
[Black "db-banana"]
[Result "1-0"]
[WhiteElo "2902"]
[BlackElo "2484"]
[TimeControl "180+1"]
[EndTime "14:06:19 PST"]
[Termination "bancsoo won by resignation"]

1. Nf3 {[%clk 0:03:00.1]} 1... Nf6 {[%clk 0:02:59.7]} 2. g3 {[%clk 0:02:58.7]}
2... d5 {[%clk 0:02:59.3]} 3. Bg2 {[%clk 0:02:58.6]} 3... c6 {[%clk 0:02:59.3]}
4. O-O {[%clk 0:02:59.1]} 4... Bg4 {[%clk 0:02:58.6]} 5. h3 {[%clk 0:02:58.7]}
5... Bh5 {[%clk 0:02:58.4]} 6. c4 {[%clk 0:02:58.6]} 6... e6 {[%clk 0:02:58.5]}
7. Qb3 {[%clk 0:02:58.2]} 7... b6 {[%clk 0:02:47.7]} 8. d4 {[%clk 0:02:56.4]}
8... Bd6 {[%clk 0:02:46.4]} 9. Nc3 {[%clk 0:02:55.9]} 9... O-O {[%clk
0:02:44.7]} 10. Re1 {[%clk 0:02:49]} 10... Nbd7 {[%clk 0:02:37.4]} 11. e4 {[%clk
0:02:47.3]} 11... dxe4 {[%clk 0:02:35.5]} 12. Nxe4 {[%clk 0:02:46.1]} 12... Nxe4
{[%clk 0:02:35]} 13. Rxe4 {[%clk 0:02:47]} 13... Nf6 {[%clk 0:02:32.6]} 14. Re1
{[%clk 0:02:47]} 14... Rc8 {[%clk 0:02:31.8]} 15. Ne5 {[%clk 0:02:37]} 15... c5
{[%clk 0:02:23.3]} 16. d5 {[%clk 0:02:16]} 16... exd5 {[%clk 0:02:10]} 17. cxd5
{[%clk 0:02:08.1]} 17... Qc7 {[%clk 0:01:44.8]} 18. Nc6 {[%clk 0:02:03.6]} 18...
Rfe8 {[%clk 0:01:28.8]} 19. Bg5 {[%clk 0:01:53]} 19... Nd7 {[%clk 0:01:04]} 20.
Ne7+ {[%clk 0:01:42.4]} 20... Kh8 {[%clk 0:01:02.9]} 21. Nxc8 {[%clk 0:01:40.9]}
21... Rxc8 {[%clk 0:00:59]} 22. Qa4 {[%clk 0:01:34.4]} 22... Ne5 {[%clk
0:00:50.3]} 23. Bf4 {[%clk 0:01:21.6]} 23... h6 {[%clk 0:00:33.6]} 24. Re3
{[%clk 0:01:16.5]} 24... f6 {[%clk 0:00:21.2]} 25. Rae1 {[%clk 0:01:08.7]} 25...
Be8 {[%clk 0:00:21.4]} 26. Qc2 {[%clk 0:01:04.6]} 26... Bg6 {[%clk 0:00:20.8]}
27. Be4 {[%clk 0:01:04.2]} 27... Bxe4 {[%clk 0:00:19.5]} 28. Qxe4 {[%clk
0:01:04.1]} 28... Re8 {[%clk 0:00:19]} 29. Kg2 {[%clk 0:01:01.7]} 29... b5
{[%clk 0:00:19]} 30. Qf5 {[%clk 0:00:57.9]} 30... Rd8 {[%clk 0:00:19.1]} 31.
Bxe5 {[%clk 0:00:55.7]} 31... Bxe5 {[%clk 0:00:19.4]} 32. f4 {[%clk 0:00:55.6]}
32... Qd6 {[%clk 0:00:09.5]} 33. fxe5 {[%clk 0:00:55]} 33... Qxd5+ {[%clk
0:00:09.7]} 34. Qf3 {[%clk 0:00:55.7]} 1-0

[Event "Late-Titled-Tuesday-Blitz-February-27-2024"]
[Site "Chess.com"]
[Date "2024.02.27"]
[Round "1"]
[White "grzechu96"]
[Black "nicolasbatista3"]
[Result "1-0"]
[WhiteElo "2751"]
[BlackElo "2433"]
[TimeControl "180+1"]
[EndTime "14:06:20 PST"]
[Termination "grzechu96 won by resignation"]

1. e4 {[%clk 0:03:00.9]} 1... c6 {[%clk 0:03:00.1]} 2. d4 {[%clk 0:03:00.9]}
2... d5 {[%clk 0:03:00.4]} 3. e5 {[%clk 0:03:01.4]} 3... c5 {[%clk 0:03:00.8]}
4. dxc5 {[%clk 0:03:00.9]} 4... e6 {[%clk 0:02:59.3]} 5. a3 {[%clk 0:03:00.8]}
5... Bxc5 {[%clk 0:02:56.5]} 6. Nf3 {[%clk 0:03:01.3]} 6... Nc6 {[%clk
0:02:54.9]} 7. b4 {[%clk 0:03:00.9]} 7... Bb6 {[%clk 0:02:55]} 8. Bd3 {[%clk
0:02:57.6]} 8... Nge7 {[%clk 0:02:54.5]} 9. O-O {[%clk 0:02:55.1]} 9... Ng6
{[%clk 0:02:53.9]} 10. Re1 {[%clk 0:02:53.2]} 10... O-O {[%clk 0:02:50.8]} 11.
Nbd2 {[%clk 0:02:43.9]} 11... f6 {[%clk 0:02:47.8]} 12. Bxg6 {[%clk 0:02:33.3]}
12... hxg6 {[%clk 0:02:47.4]} 13. Bb2 {[%clk 0:02:32.6]} 13... fxe5 {[%clk
0:02:44]} 14. Bxe5 {[%clk 0:02:32.2]} 14... Nxe5 {[%clk 0:02:43.8]} 15. Rxe5
{[%clk 0:02:32.3]} 15... Qf6 {[%clk 0:02:26.3]} 16. c4 {[%clk 0:02:25.8]} 16...
Bd4 {[%clk 0:02:24.2]} 17. Nxd4 {[%clk 0:02:18.5]} 17... Qxe5 {[%clk 0:02:24]}
18. N2f3 {[%clk 0:02:17.5]} 18... Qf6 {[%clk 0:02:09.7]} 19. Qe2 {[%clk
0:02:14.4]} 19... Bd7 {[%clk 0:02:04.4]} 20. Ne5 {[%clk 0:02:11]} 20... Bc6
{[%clk 0:01:53.1]} 21. c5 {[%clk 0:02:08.9]} 21... Qh4 {[%clk 0:01:38.5]} 22.
Rd1 {[%clk 0:02:07.2]} 22... Rf6 {[%clk 0:01:29.5]} 23. f3 {[%clk 0:01:25.2]}
23... a6 {[%clk 0:01:14.3]} 24. Ng4 {[%clk 0:01:21.8]} 24... Ba4 {[%clk
0:01:02.7]} 25. Re1 {[%clk 0:01:08.7]} 25... Kh8 {[%clk 0:00:57.6]} 26. g3
{[%clk 0:01:06.1]} 26... Qg5 {[%clk 0:00:50.3]} 27. f4 {[%clk 0:00:59.4]} 27...
Qh5 {[%clk 0:00:36.7]} 28. Nxf6 {[%clk 0:00:59.8]} 28... Qxe2 {[%clk 0:00:35.7]}
29. Rxe2 {[%clk 0:01:00.7]} 29... gxf6 {[%clk 0:00:36.3]} 30. Rxe6 {[%clk
0:01:01.3]} 30... Kg7 {[%clk 0:00:35.7]} 31. Re7+ {[%clk 0:01:01.8]} 31... Kh6
{[%clk 0:00:35.7]} 32. Rxb7 {[%clk 0:01:01]} 32... Re8 {[%clk 0:00:36.2]} 33. c6
{[%clk 0:00:53.1]} 33... Re3 {[%clk 0:00:35.5]} 34. c7 {[%clk 0:00:51]} 34...
Rc3 {[%clk 0:00:35.7]} 35. Ne6 {[%clk 0:00:49.5]} 35... Bd7 {[%clk 0:00:34.9]}
36. Nc5 {[%clk 0:00:50]} 36... Bh3 {[%clk 0:00:33.3]} 37. Rb8 {[%clk 0:00:48.9]}
37... d4 {[%clk 0:00:33]} 38. Rh8+ {[%clk 0:00:48.7]} 38... Kg7 {[%clk
0:00:32.9]} 39. Rxh3 {[%clk 0:00:49.5]} 1-0

[Event "Late-Titled-Tuesday-Blitz-February-27-2024"]
[Site "Chess.com"]
[Date "2024.02.27"]
[Round "1"]
[White "ameetghasi100"]
[Black "JonasGallasch"]
[Result "1-0"]
[WhiteElo "2748"]
[BlackElo "2427"]
[TimeControl "180+1"]
[EndTime "14:06:21 PST"]
[Termination "ameetghasi100 won by resignation"]

1. b3 {[%clk 0:03:00.6]} 1... e5 {[%clk 0:02:55.1]} 2. Bb2 {[%clk 0:03:01.5]}
2... Nc6 {[%clk 0:02:54.6]} 3. e3 {[%clk 0:03:01.9]} 3... Nf6 {[%clk 0:02:55.2]}
4. c4 {[%clk 0:02:59.9]} 4... d5 {[%clk 0:02:50.1]} 5. cxd5 {[%clk 0:03:00.8]}
5... Nxd5 {[%clk 0:02:50.7]} 6. a3 {[%clk 0:03:01.4]} 6... Be7 {[%clk
0:02:49.4]} 7. b4 {[%clk 0:03:01.5]} 7... a6 {[%clk 0:02:45.6]} 8. Qc2 {[%clk
0:02:57.3]} 8... O-O {[%clk 0:02:40.1]} 9. Nf3 {[%clk 0:02:57.6]} 9... Bd6
{[%clk 0:02:34.8]} 10. Bd3 {[%clk 0:02:47.7]} 10... h6 {[%clk 0:02:32]} 11. Bh7+
{[%clk 0:02:38.8]} 11... Kh8 {[%clk 0:02:31.6]} 12. Be4 {[%clk 0:02:39.7]} 12...
Be6 {[%clk 0:02:23]} 13. g4 {[%clk 0:02:30.7]} 13... f6 {[%clk 0:01:58.2]} 14.
Nh4 {[%clk 0:02:29.6]} 14... Nce7 {[%clk 0:01:55.1]} 15. Nc3 {[%clk 0:02:23.3]}
15... Nxc3 {[%clk 0:01:53.9]} 16. dxc3 {[%clk 0:02:16.1]} 16... Bxg4 {[%clk
0:01:53.5]} 17. Rg1 {[%clk 0:02:10]} 17... Bh5 {[%clk 0:01:33.3]} 18. Bxb7
{[%clk 0:02:08.8]} 18... Ra7 {[%clk 0:01:31.1]} 19. Be4 {[%clk 0:02:09]} 19...
c5 {[%clk 0:01:30.1]} 20. Qd3 {[%clk 0:01:50.3]} 20... cxb4 {[%clk 0:01:20.1]}
21. axb4 {[%clk 0:01:51.2]} 21... Qb6 {[%clk 0:01:12.3]} 22. Bf3 {[%clk
0:01:44.1]} 22... Bxf3 {[%clk 0:01:11.3]} 23. Nxf3 {[%clk 0:01:45]} 23... Rd8
{[%clk 0:01:09.9]} 24. Qe4 {[%clk 0:01:44.2]} 24... Qc6 {[%clk 0:01:05]} 25. Nd2
{[%clk 0:01:39.3]} 25... f5 {[%clk 0:01:01.5]} 26. Qxc6 {[%clk 0:01:30.7]} 26...
Nxc6 {[%clk 0:01:02.4]} 27. Nc4 {[%clk 0:01:31.3]} 27... Bb8 {[%clk 0:01:00.1]}
28. Rg6 {[%clk 0:01:31.6]} 28... Rc7 {[%clk 0:00:52.6]} 29. Nb6 {[%clk
0:01:26.8]} 29... Ne7 {[%clk 0:00:48.8]} 30. Re6 {[%clk 0:01:25.9]} 30... Rc6
{[%clk 0:00:36.3]} 31. Rxc6 {[%clk 0:01:25.4]} 31... Nxc6 {[%clk 0:00:37.2]} 32.
Rxa6 {[%clk 0:01:26.1]} 32... e4 {[%clk 0:00:33.4]} 33. Nd7 {[%clk 0:01:04.5]}
33... Rxd7 {[%clk 0:00:16.5]} 34. Rxc6 {[%clk 0:01:04]} 34... Bxh2 {[%clk
0:00:17.4]} 35. c4 {[%clk 0:01:02.2]} 35... h5 {[%clk 0:00:16.6]} 36. Rh6+
{[%clk 0:00:59.8]} 36... Kg8 {[%clk 0:00:16.1]} 37. Rxh5 {[%clk 0:01:00.7]}
37... Bd6 {[%clk 0:00:16.3]} 38. c5 {[%clk 0:01:00.1]} 38... g6 {[%clk
0:00:16.8]} 39. Rh8+ {[%clk 0:00:59.7]} 1-0

[Event "Late-Titled-Tuesday-Blitz-February-27-2024"]
[Site "Chess.com"]
[Date "2024.02.27"]
[Round "1"]
[White "Evandro_Barbosa"]
[Black "OverallStranger"]
[Result "1-0"]
[WhiteElo "2668"]
[BlackElo "2378"]
[TimeControl "180+1"]
[EndTime "14:06:22 PST"]
[Termination "Evandro_Barbosa won by resignation"]

1. d4 {[%clk 0:03:00.9]} 1... Nf6 {[%clk 0:02:59.7]} 2. Nf3 {[%clk 0:03:01.1]}
2... g6 {[%clk 0:02:59.9]} 3. g3 {[%clk 0:03:01.4]} 3... Bg7 {[%clk 0:03:00.1]}
4. Bg2 {[%clk 0:03:02.1]} 4... O-O {[%clk 0:03:00.6]} 5. O-O {[%clk 0:03:02.8]}
5... c5 {[%clk 0:03:01.1]} 6. d5 {[%clk 0:03:01.9]} 6... d6 {[%clk 0:03:00]} 7.
c4 {[%clk 0:03:02]} 7... b5 {[%clk 0:02:59.6]} 8. cxb5 {[%clk 0:03:01.5]} 8...
a6 {[%clk 0:03:00.2]} 9. bxa6 {[%clk 0:03:01.7]} 9... Bxa6 {[%clk 0:03:00.8]}
10. Nc3 {[%clk 0:03:02]} 10... Nbd7 {[%clk 0:03:01.3]} 11. Qc2 {[%clk
0:03:01.7]} 11... Qa5 {[%clk 0:03:00.6]} 12. Rb1 {[%clk 0:03:01.7]} 12... Bb7
{[%clk 0:02:55.6]} 13. Nh4 {[%clk 0:02:59.3]} 13... Nb6 {[%clk 0:02:49.5]} 14.
Rd1 {[%clk 0:02:57]} 14... Rab8 {[%clk 0:02:42.6]} 15. b3 {[%clk 0:02:56.2]}
15... Qa8 {[%clk 0:02:42.8]} 16. e4 {[%clk 0:02:52]} 16... Nfd7 {[%clk 0:02:42]}
17. a4 {[%clk 0:02:44.3]} 17... Ba6 {[%clk 0:02:40.9]} 18. Bb2 {[%clk
0:02:36.8]} 18... Rb7 {[%clk 0:02:16]} 19. Nb5 {[%clk 0:02:28.2]} 19... Bxb5
{[%clk 0:02:14.6]} 20. axb5 {[%clk 0:02:27.4]} 20... Qa5 {[%clk 0:02:12.8]} 21.
Bxg7 {[%clk 0:02:26.4]} 21... Kxg7 {[%clk 0:02:12.7]} 22. Bf1 {[%clk 0:02:25.7]}
22... Nc8 {[%clk 0:02:10.1]} 23. b4 {[%clk 0:02:21.6]} 23... cxb4 {[%clk
0:02:07.5]} 24. Qb2+ {[%clk 0:02:21.6]} 24... Kg8 {[%clk 0:02:07.1]} 25. Qxb4
{[%clk 0:02:21.4]} 25... Qb6 {[%clk 0:02:06.9]} 26. Rdc1 {[%clk 0:02:18.6]}
26... Nc5 {[%clk 0:02:06.9]} 27. Nf3 {[%clk 0:02:16.2]} 27... Na7 {[%clk
0:02:05.2]} 28. Nd2 {[%clk 0:02:08.2]} 28... Rfb8 {[%clk 0:02:00.5]} 29. Qa3
{[%clk 0:02:02.3]} 29... Qc7 {[%clk 0:01:56.4]} 30. e5 {[%clk 0:01:38.8]} 30...
Nxb5 {[%clk 0:01:54.5]} 31. Qe3 {[%clk 0:01:38.6]} 31... Na7 {[%clk 0:01:41.2]}
32. Rxb7 {[%clk 0:01:36.2]} 32... Rxb7 {[%clk 0:01:42.1]} 33. Ne4 {[%clk
0:01:34.8]} 33... Qd8 {[%clk 0:01:01.2]} 34. Nxc5 {[%clk 0:01:25.1]} 34... dxc5
{[%clk 0:01:01.9]} 35. Qxc5 {[%clk 0:01:22.1]} 35... Rd7 {[%clk 0:01:02.5]} 36.
Bg2 {[%clk 0:01:20.5]} 36... Kg7 {[%clk 0:01:00.7]} 37. h4 {[%clk 0:01:19.2]}
37... h5 {[%clk 0:01:00.2]} 38. Kh2 {[%clk 0:01:15.7]} 38... Qb8 {[%clk
0:00:53.3]} 39. e6 {[%clk 0:01:10]} 39... fxe6 {[%clk 0:00:50.3]} 40. dxe6
{[%clk 0:01:09.6]} 40... Rd6 {[%clk 0:00:51]} 41. Qe5+ {[%clk 0:01:05]} 41...
Kh7 {[%clk 0:00:50]} 42. Be4 {[%clk 0:01:03.8]} 42... Qg8 {[%clk 0:00:44]} 43.
Qxh5+ {[%clk 0:01:00.8]} 43... Kg7 {[%clk 0:00:42.4]} 44. Qxg6+ {[%clk
0:00:59.6]} 44... Kf8 {[%clk 0:00:43]} 45. Qxg8+ {[%clk 0:00:52.9]} 45... Kxg8
{[%clk 0:00:43.3]} 46. Rc7 {[%clk 0:00:51.4]} 46... Rxe6 {[%clk 0:00:43.6]} 47.
Bd5 {[%clk 0:00:50.7]} 1-0